Workbook

Sheet 2023
A1: Дата | B1: Сортируемый, г | C1: Органика, г | D1: Не сортируемый, г | E1: Наполнитель кошачьего туалета, г | F1: Комментарий | G1: 2 взрослых 2 детей кот
A2: 13.05 | C2: 750 | E2: 2000 | G2: Масса сортируемого (кг) | H2: =SUM(B$2:B$250)/1000 -> 68.28 | J2: 232 дня | K2: кот = 0,8 чел | L2: 7,3 р/м2
A3: 15.05 | C3: 875 | D3: 955 | G3: Масса органики (кг) | H3: =SUM(C$2:C$250)/1000 -> 58.64 | J3: 1113,6 человека дня
A4: 20.05 | B4: 8895 | G4: Масса не сортируемого (кг) | H4: =SUM(D$2:D$250)/1000 -> 41.34 | J4: 1033,6 человека дня | K4: с поправкой на отсутствие
A5: 21.05 | C5: 1255 | D5: 955 | E5: 1000 | G5: Масса наполнителя (кг) | H5: =SUM(E$2:E$250)/1000 -> 38 | J5: 0,199 кг/чел в день
A6: 24.05 | D6: 640 | G6: Доля сортируемого (%) | H6: =100*H2/SUM(H$2:H$5) -> 33.10384951
A7: 25.05 | C7: 585 | D7: 705 | G7: Доля органики (%) | H7: =100*H3/SUM(H$2:H$5) -> 28.43013672
A8: 27.05 | C8: 1360 | D8: 100 | G8: Доля не сортируемого (%) | H8: =100*H4/SUM(H$2:H$5) -> 20.0426646
A9: 29.05 | D9: 965 | G9: Доля наполнителя (%) | H9: =100*H5/SUM(H$2:H$5) -> 18.42334917
A10: 31.05 | D10: 320 | G10: Масса общая (кг) | H10: =SUM(H$2:H$5) -> 206.26
A11: 01.06 | C11: 1060 | E11: 5000
A12: 03.06 | D12: 200
A13: 04.06 | C13: 730 | G13: Только числа, без формул | I13: Перерасчет на день
A14: 06.06 | D14: 1205 | G14: Масса общая (кг) | H14: 206.26 | I14: 0.199 | J14: кг/чел
A15: 08.06 | C15: 570 | G15: Масса сортируемого (кг) | H15: 68.28 | I15: 0.081 | J15: кг/чел
A16: 10.06 | D16: 265 | G16: Масса органики (кг) | H16: 58.64 | I16: 0.069 | J16: кг/чел
A17: 11.06 | C17: 1005 | D17: 205 | G17: Масса не сортируемого (кг) | H17: 41.34 | I17: 0.049 | J17: кг/чел
A18: 12.06 | B18: 10090 | G18: Масса наполнителя (кг) | H18: 38
A19: 14.06 | D19: 295 | G19: Доля сортируемого (%) | H19: 33.1
A20: 15.06 | C20: 775 | G20: Доля органики (%) | H20: 28.43
A21: 17.06 | C21: 630 | D21: 205 | G21: Доля не сортируемого (%) | H21: 20
A22: 19.06 | D22: 400 | G22: Доля наполнителя (%) | H22: 18.42
A23: 21.06 | C23: 1030 | D23: 730
A24: 24.06 | C24: 400 | D24: 260
A25: 28.06 | C25: 885 | D25: 305
A26: 30.06 | C26: 1735 | D26: 425
A27: 01.07 | D27: 400
A28: 05.07 | C28: 905 | D28: 235
A29: 08.07 | C29: 1030 | D29: 345 | E29: 5000
A30: 10.07 | C30: 985
A31: 14.07 | C31: 1070
A32: 16.07 | D32: 300
A33: 19.07 | C33: 10
A34: 22.07 | C34: 290
A35: 25.07 | C35: 615 | D35: 390
A36: 29.07 | B36: 5720
A37: 31.07 | D37: 825
A38: 05.08 | C38: 600 | E38: 5000
A39: 07.08
A40: 09.08 | C40: 1060
A41: 12.08 | C41: 1285
A42: 13.08 | D42: 415
A43: 16.08 | C43: 1060
A44: 19.08 | B44: 6240 | C44: 1655
A45: 21.08 | C45: 560 | D45: 820
A46: 24.08 | C46: 995
A47: 27.08 | C47: 2465 | D47: 380
A48: 31.08 | C48: 690
A49: 02.09 | C49: 835 | D49: 610 | E49: 5000
A50: 04.09 | C50: 1205
A51: 05.09 | D51: 695
A52: 07.09 | C52: 695 | D52: 80
A53: 09.09 | C53: 115
A54: 12.09 | C54: 500
A55: 13.09 | D55: 445
A56: 14.09 | D56: 250
A57: 16.09 | B57: 3270 | C57: 1830
A58: 17.09 | C58: 625
A59: 20.09 | C59: 395 | D59: 655
A60: 27.09 | C60: 680
A61: 28.09 | D61: 550
A62: 30.09 | C62: 1865
A63: 02.10 | B63: 400
A64: 04.10 | B64: 765 | C64: 430 | D64: 470
A65: 07.10 | B65: 465
A66: 10.10 | C66: 460 | D66: 1100
A67: 14.10 | E67: 5000
A68: 19.10 | D68: 430
A69: 21.10 | B69: 6520 | C69: 915 | D69: 5960
A70: 23.10 | D70: 770
A71: 28.10 | B71: 490 | C71: 350 | D71: 2275
A72: 29.10 | D72: 600 | F72: кресло
A73: 31.10 | D73: 820
A74: 02.11 | C74: 150
A75: 04.11 | B75: 100 | C75: 330 | D75: 360 | E75: 5000
A76: 05.11 | D76: 435
A77: 06.11 | C77: 860
A78: 07.11 | D78: 395
A79: 08.11 | B79: 680
A80: 09.11 | C80: 580
A81: 11.11 | C81: 1075
A82: 13.11 | C82: 1425
A83: 14.11 | D83: 515
A84: 17.11 | C84: 720 | D84: 255
A85: 18.11 | B85: 5560 | C85: 2000
A86: 20.11 | D86: 275
A87: 22.11 | C87: 1150
A88: 25.11 | B88: 250
A89: 26.11 | C89: 1655 | D89: 395
A90: 29.11 | C90: 700 | D90: 355
A91: 02.12 | B91: 80 | C91: 1215 | D91: 2580 | E91: 5000
A92: 05.12 | C92: 1040
A93: 06.12 | D93: 755
A94: 09.12 | C94: 1220 | D94: 1980 | F94: кресло
A95: 13.12 | B95: 300 | C95: 755 | D95: 435
A96: 16.12 | B96: 14945 | C96: 720
A97: 17.12 | B97: 3310 | F97: обувь
A98: 20.12 | C98: 675 | D98: 705
A99: 23.12 | C99: 250 | D99: 500
A100: 27.12 | C100: 490 | D100: 735
A101: 29.12 | B101: 200 | C101: 300
A102: 30.12 | C102: 1510 | D102: 1710

Sheet 2024
A1: Дата | B1: Сортируемый, г | C1: Органика, г | D1: Не сортируемый, г | E1: Наполнитель кошачьего туалета, г | F1: Комментарий | G1: 2 взрослых 2 детей кот
A2: 01.01 | D2: 325 | G2: Масса сортируемого (кг) | H2: =SUM(B$2:B$245)/1000 -> 119.307 | J2: 366 дней | K2: кот = 0,8 чел | L2: 7,34 р/м2 | M2: 29,4 м квадратных на человека в среднем по России | N2: Источник - https://www.kommersant.ru/doc/8078203
A3: 03.01 | C3: 860 | E3: 4500 | G3: Масса органики (кг) | H3: =SUM(C$2:C$245)/1000 -> 83.495 | J3: 1756,8 человека дня
A4: 05.01 | C4: 895 | D4: 345 | G4: Масса не сортируемого (кг) | H4: =SUM(D$2:D$245)/1000 -> 46.53 | J4: 1662,8 человека дня | K4: с поправкой на отсутствие
A5: 08.01 | C5: 910 | G5: Масса наполнителя (кг) | H5: =SUM(E$2:E$250)/1000 -> 57 | J5: 0,18423 кг/чел в день
A6: 10.01 | B6: 160 | D6: 675 | G6: Доля сортируемого (%) | H6: =100*H2/SUM(H$2:H$5) -> 38.94695951
A7: 12.01 | C7: 750 | D7: 750 | G7: Доля органики (%) | H7: =100*H3/SUM(H$2:H$5) -> 27.25637544
A8: 13.01 | C8: 1170 | D8: 760 | G8: Доля не сортируемого (%) | H8: =100*H4/SUM(H$2:H$5) -> 15.18940235
A9: 17.01 | B9: 505 | G9: Доля наполнителя (%) | H9: =100*H5/SUM(H$2:H$5) -> 18.60726271
A10: 20.01 | B10: 13800 | C10: 860 | G10: Масса общая (кг) | H10: =SUM(H$2:H$5) -> 306.332
A11: 22.01 | D11: 1095
A12: 24.01 | C12: 220
A13: 27.01 | C13: 1335 | G13: Только числа, без формул | I13: Перерасчет на день
A14: 29.01 | C14: 505 | D14: 555 | G14: Масса общая (кг) | H14: 306.33 | I14: 0.184 | J14: кг/чел
A15: 01.02 | C15: 930 | D15: 255 | G15: Масса сортируемого (кг) | H15: 119.307 | I15: 0.087 | J15: кг/чел
A16: 04.02 | C16: 565 | D16: 145 | E16: 4500 | G16: Масса органики (кг) | H16: 83.495 | I16: 0.061 | J16: кг/чел
A17: 05.02 | B17: 700 | D17: 3270 | F17: спинка от кресла | G17: Масса не сортируемого (кг) | H17: 46.53 | I17: 0.034 | J17: кг/чел
A18: 08.02 | C18: 495 | D18: 585 | G18: Масса наполнителя (кг) | H18: 57
A19: 11.02 | C19: 625 | D19: 165 | G19: Доля сортируемого (%) | H19: 38.95
A20: 15.02 | C20: 545 | D20: 350 | G20: Доля органики (%) | H20: 27.3
A21: 17.02 | B21: 3820 | G21: Доля не сортируемого (%) | H21: 15.2
A22: 18.02 | C22: 345 | D22: 140 | G22: Доля наполнителя (%) | H22: 18.6
A23: 20.02 | C23: 450 | D23: 310
A24: 21.02 | B24: 440
A25: 23.02 | D25: 165
A26: 24.02 | C26: 935
A27: 27.02 | C27: 390
A28: 01.03 | B28: 160 | D28: 560
A29: 02.03 | C29: 920 | D29: 90 | E29: 5000
A30: 06.03 | C30: 1335 | D30: 415
A31: 08.03 | D31: 180
A32: 09.03 | C32: 580 | D32: 1190 | F32: обувь
A33: 10.03 | D33: 230
A34: 12.03 | C34: 515 | D34: 130
A35: 15.03 | D35: 310
A36: 16.03 | C36: 820 | D36: 240
A37: 19.03 | C37: 195 | D37: 215
A38: 21.03 | B38: 32
A39: 23.03 | B39: 355 | C39: 1615
A40: 24.03 | D40: 355
A41: 26.03 | C41: 645
A42: 29.03 | B42: 140 | D42: 290
A43: 30.03 | C43: 1500
A44: 31.03 | D44: 295
A45: 02.04 | D45: 210
A46: 04.04 | C46: 485
A47: 06.04 | C47: 815 | D47: 405 | E47: 4500
A48: 09.04 | B48: 230 | C48: 950 | D48: 320
A49: 13.04 | C49: 625
A50: 14.04 | C50: 630 | D50: 710
A51: 16.04 | B51: 245 | D51: 70
A52: 17.04 | C52: 30
A53: 20.04 | B53: 18405 | C53: 70 | D53: 260
A54: 22.04 | D54: 100
A55: 25.04 | C55: 510
A56: 27.04 | C56: 110
A57: 28.04 | B57: 380
A58: 29.04 | D58: 1435 | F58: обувь и текстиль
A59: 30.04 | D59: 970
A60: 01.05 | C60: 560
A61: 02.05 | B61: 160 | D61: 160
A62: 04.05 | C62: 965 | D62: 265 | E62: 5000
A63: 05.05 | B63: 30 | D63: 135
A64: 06.05 | D64: 95
A65: 07.05 | C65: 440
A66: 09.05 | C66: 465 | D66: 200
A67: 10.05 | B67: 205
A68: 11.05 | C68: 585 | D68: 120
A69: 13.05 | C69: 595
A70: 15.05 | D70: 165
A71: 18.05 | B71: 7320 | C71: 145 | D71: 380
A72: 19.05 | C72: 420
A73: 20.05 | B73: 50
A74: 22.05 | D74: 275
A75: 23.05 | B75: 450 | C75: 625
A76: 24.05 | B76: 85
A77: 25.05 | C77: 1100 | D77: 195
A78: 27.05 | D78: 280
A79: 30.05 | C79: 880 | D79: 210
A80: 31.05 | B80: 225
A81: 01.06 | C81: 520 | E81: 4500
A82: 04.06 | C82: 890
A83: 05.06 | B83: 185
A84: 07.06 | D84: 990
A85: 08.06 | C85: 925
A86: 09.06 | D86: 1225
A87: 10.06 | C87: 630
A88: 12.06 | B88: 230 | C88: 840 | D88: 420
A89: 15.06 | B89: 7535 | C89: 755 | D89: 315 | F89: 18.06-19.06 — 8 чел/дней
A90: 19.06 | D90: 280
A91: 22.06 | B91: 415 | C91: 1225 | D91: 275
A92: 23.06 | C92: 1420
A93: 25.06 | C93: 885 | D93: 295
A94: 28.06 | D94: 280
A95: 29.06 | B95: 190 | C95: 1650 | F95: 29.06-30.06 — 1 чел/день
A96: 30.06 | C96: 325
A97: 01.07 | B97: 250
A98: 02.07 | D98: 305 | F98: 02.07-05.07 — 4 чел/дня
A99: 06.07 | C99: 840 | D99: 305 | E99: 4500 | F99: 02.07- 02.08 — 64 чел/дня
A100: 07.07 | D100: 245
A101: 08.07 | D101: 610
A102: 09.07 | C102: 350
A103: 12.07 | B103: 410
A104: 14.07 | B104: 50 | C104: 835 | D104: 50
A105: 15.07 | C105: 465 | D105: 175
A106: 17.07 | C106: 265
A107: 20.07 | B107: 18010 | C107: 130 | D107: 635 | F107: 22.07- 02.08 — 12 чел/дня
A108: 23.07 | C108: 285 | D108: 195
A109: 26.07 | B109: 95 | D109: 60
A110: 27.07 | C110: 450
A111: 30.07 | B111: 125 | D111: 130
A112: 01.08 | C112: 160
A113: 03.08 | C113: 510 | D113: 235 | E113: 5000
A114: 04.08 | B114: 110
A115: 06.08 | C115: 835 | D115: 400
A116: 08.08 | B116: 255 | C116: 655 | D116: 115
A117: 10.08 | C117: 1060 | D117: 110
A118: 12.08 | C118: 1055
A119: 14.08 | C119: 780 | D119: 370
A120: 15.08 | B120: 250
A121: 16.08 | D121: 580 | F121: стакан
A122: 17.08 | B122: 3935 | C122: 530 | D122: 300
A123: 19.08 | D123: 480
A124: 20.08 | B124: 5830 | C124: 665 | D124: 290 | F124: картон от мебели
A125: 21.08 | B125: 255
A126: 23.08 | D126: 465
A127: 24.08 | C127: 340
A128: 25.08 | D128: 180
A129: 26.08 | B129: 20
A130: 28.08 | C130: 845
A131: 31.08 | C131: 2130 | D131: 275
A132: 01.09 | B132: 370
A133: 03.09 | C133: 1050 | D133: 425 | E133: 5000
A134: 06.09 | B134: 240 | D134: 305
A135: 07.09 | C135: 835
A136: 09.09 | D136: 330
A137: 10.09 | C137: 610
A138: 13.09 | D138: 295
A139: 14.09 | C139: 580
A140: 17.09 | C140: 690 | D140: 270 | F140: 18.09-22.09 — 5 чел/дней
A141: 21.09 | B141: 365 | D141: 400
A142: 24.09 | C142: 355 | D142: 290
A143: 26.09 | B143: 180 | C143: 825
A144: 28.09 | C144: 650
A145: 01.10 | C145: 840 | D145: 295 | E145: 4500
A146: 02.10 | B146: 180
A147: 04.10 | D147: 160
A148: 05.10 | C148: 380
A149: 06.10 | B149: 200
A150: 07.10 | D150: 420
A151: 08.10 | C151: 575 | D151: 155
A152: 11.10 | B152: 105 | D152: 145
A153: 12.10 | C153: 560
A154: 15.10 | B154: 90 | C154: 915 | D154: 180
A155: 18.10 | D155: 255
A156: 19.10 | B156: 13575 | C156: 470
A157: 20.10 | D157: 2480 | F157: обувь
A158: 22.10 | C158: 580
A159: 23.10 | C159: 335
A160: 26.10 | D160: 510
A161: 27.10 | C161: 970
A162: 29.10 | C162: 225 | D162: 190
A163: 02.11 | C163: 615 | D163: 200 | E163: 5000
A164: 03.11 | B164: 415
A165: 05.11 | C165: 790 | D165: 350
A166: 07.11 | C166: 575
A167: 09.11 | C167: 705 | D167: 170
A168: 12.11 | C168: 635 | D168: 305
A169: 13.11 | B169: 330
A170: 16.11 | B170: 6125 | C170: 580
A171: 19.11 | C171: 665
A172: 20.11 | D172: 360
A173: 21.11 | D173: 145
A174: 23.11 | C174: 660
A175: 26.11 | C175: 770
A176: 27.11 | D176: 195
A177: 30.11 | C177: 450 | D177: 145
A178: 03.12 | B178: 610 | D178: 145
A179: 05.12 | C179: 715 | D179: 310 | E179: 5000
A180: 08.12 | C180: 260
A181: 10.12 | C181: 820 | D181: 555
A182: 12.12 | B182: 235
A183: 14.12 | C183: 565 | D183: 345
A184: 17.12 | C184: 460
A185: 19.12 | B185: 200 | D185: 1215
A186: 21.12 | B186: 9850 | C186: 1350
A187: 22.12 | C187: 1495
A188: 25.12 | C188: 715 | D188: 825
A189: 26.12 | B189: 190 | D189: 190
A190: 28.12 | C190: 870
A191: 29.12 | C191: 1345 | D191: 1250
A192: 30.12 | C192: 940 | D192: 305
A193: 31.12 | C193: 905 | D193: 475

Sheet 2025
A1: Дата | B1: Сортируемый, г | C1: Органика, г | D1: Не сортируемый, г | E1: Наполнитель кошачьего туалета, г | F1: Комментарий | G1: 2 взрослых 2 детей кот
A2: 02.01 | C2: 580 | G2: Масса сортируемого (кг) | H2: =SUM(B$2:B$246)/1000 -> 116.245 | J2: 365 дней | K2: кот = 0,6 чел | L2: 7,34 р/м2 | M2: До 30.06 | N2: 30 м квадратных общей площади жилья на человека в среднем по России
A3: 03.01 | B3: 270 | G3: Масса органики (кг) | H3: =SUM(C$2:C$246)/1000 -> 102.275 | J3: 1679 человека дня | L3: 8,43 р/м2 | M3: С 01.07 | N3: 22,5 м квадратных на человека в среднем в Москве
A4: 04.01 | B4: 170 | C4: 520 | D4: 490 | E4: 4500 | G4: Масса не сортируемого (кг) | H4: =SUM(D$2:D$246)/1000 -> 38.585 | J4: 1550 человека дня | K4: с поправкой на отсутствие | L4: С начала сентября кот переведен на смываемый тофу наполнитель
A5: 05.01 | C5: 390 | G5: Масса наполнителя (кг) | H5: =SUM(E$2:E$250)/1000 -> 38.5 | J5: 0,19 кг/чел в день
A6: 06.01 | B6: 150 | G6: Доля сортируемого (%) | H6: =100*H2/SUM(H$2:H$5) -> 39.32443633
A7: 07.01 | C7: 1260 | D7: 90 | G7: Доля органики (%) | H7: =100*H3/SUM(H$2:H$5) -> 34.59853521
A8: 09.01 | C8: 440 | G8: Доля не сортируемого (%) | H8: =100*H4/SUM(H$2:H$5) -> 13.05289153
A9: 11.01 | B9: 170 | C9: 1210 | D9: 140 | G9: Доля наполнителя (%) | H9: =100*H5/SUM(H$2:H$5) -> 13.02413694
A10: 14.01 | C10: 1115 | D10: 225 | G10: Масса общая (кг) | H10: =SUM(H$2:H$5) -> 295.605
A11: 15.01 | B11: 110
A12: 18.01 | B12: 7705 | C12: 1210 | D12: 960
A13: 23.01 | C13: 1120 | D13: 665 | G13: Только числа, без формул | I13: Перерасчет на день
A14: 25.01 | C14: 445 | G14: Масса общая (кг) | H14: 295.605 | I14: 0.19 | J14: кг/чел
A15: 26.01 | B15: 185 | G15: Масса сортируемого (кг) | H15: 116.245 | I15: 0.087 | J15: кг/чел
A16: 28.01 | D16: 445 | G16: Масса органики (кг) | H16: 102.275 | I16: 0.077 | J16: кг/чел
A17: 30.01 | C17: 1130 | G17: Масса не сортируемого (кг) | H17: 38.585 | I17: 0.029 | J17: кг/чел
A18: 01.02 | C18: 935 | E18: 4500 | G18: Масса наполнителя (кг) | H18: 38.5
A19: 02.02 | D19: 235 | G19: Доля сортируемого (%) | H19: 39.33
A20: 04.02 | C20: 875 | G20: Доля органики (%) | H20: 34.6
A21: 06.02 | C21: 910 | D21: 185 | G21: Доля не сортируемого (%) | H21: 13.05
A22: 08.02 | C22: 1330 | G22: Доля наполнителя (%) | H22: 13.02
A23: 09.02 | B23: 270
A24: 11.02 | C24: 625 | D24: 210
A25: 15.02 | B25: 4020 | C25: 715 | D25: 260
A26: 16.02 | D26: 730 | F26: ламели от кровати
A27: 17.02 | C27: 665 | D27: 105
A28: 20.02 | D28: 525 | F28: тарелка
A29: 22.02 | C29: 1155
A30: 25.02 | C30: 580 | D30: 400
A31: 01.03 | C31: 680 | D31: 115 | E31: 5000
A32: 03.03 | C32: 570 | D32: 620
A33: 06.03 | C33: 1210
A34: 08.03 | C34: 260
A35: 10.03 | D35: 305
A36: 13.03 | C36: 460
A37: 15.03 | B37: 7410 | C37: 250 | D37: 600
A38: 18.03 | B38: 520 | C38: 1030
A39: 21.03 | D39: 510
A40: 22.03 | C40: 965
A41: 25.03 | C41: 975
A42: 26.03 | D42: 620
A43: 27.03 | B43: 200
A44: 29.03 | C44: 845
A45: 30.03 | C45: 545 | D45: 225
A46: 02.04 | C46: 485 | D46: 95
A47: 03.04 | B47: 90
A48: 05.04 | C48: 1020 | E48: 4500
A49: 09.04 | C49: 965 | D49: 370
A50: 12.04 | C50: 2480 | D50: 140
A51: 14.04 | D51: 115
A52: 15.04 | C52: 820
A53: 19.04 | B53: 9120 | C53: 1590 | D53: 230
A54: 20.04 | D54: 275
A55: 23.04 | C55: 635 | D55: 210
A56: 26.04 | C56: 340
A57: 28.04 | D57: 320
A58: 30.04 | C58: 1280 | D58: 270
A59: 02.05 | D59: 120
A60: 03.05 | C60: 385 | D60: 45 | E60: 5000
A61: 06.05 | C61: 885 | D61: 190
A62: 07.05 | B62: 735 | D62: 440
A63: 10.05 | C63: 390 | D63: 190
A64: 13.05 | C64: 475
A65: 14.05 | D65: 270
A66: 17.05 | B66: 7110 | C66: 540
A67: 18.05 | C67: 715 | D67: 555
A68: 21.05 | C68: 660 | D68: 420
A69: 23.05 | B69: 570
A70: 24.05 | C70: 605
A71: 27.05 | C71: 905 | D71: 710
A72: 29.05 | D72: 300
A73: 31.05 | C73: 825
A74: 01.06 | B74: 570
A75: 05.06 | C75: 1005 | D75: 315 | E75: 4500 | F75: 02.06-05.06 — 4 чел/дня
A76: 07.06 | C76: 1110
A77: 10.06 | C77: 1095 | D77: 300
A78: 14.06 | C78: 1110 | D78: 245
A79: 17.06 | C79: 640 | D79: 210
A80: 18.06 | C80: 630 | F80: яичная скорлупа
A81: 21.06 | C81: 2030 | F81: 20.06-22.06 — 3 чел/дня
A82: 24.06 | C82: 295 | D82: 325 | F82: 20.06-11.08 — 106 чел/дней
A83: 26.06 | B83: 460
A84: 29.06 | C84: 1480
A85: 01.07 | C85: 395
A86: 03.07 | D86: 1705 | F86: уборка
A87: 05.07 | C87: 555 | E87: 4500 | F87: 07.07-19.07 — 13 чел/дней
A88: 08.07 | D88: 425
A89: 11.07 | B89: 460
A90: 12.07 | C90: 410 | D90: 250
A91: 19.07 | B91: 14755 | C91: 200 | D91: 40
A92: 21.07 | D92: 100
A93: 23.07 | B93: 215
A94: 24.07 | C94: 585 | D94: 380
A95: 26.07 | C95: 555 | D95: 235
A96: 27.07 | D96: 275
A97: 30.07 | D97: 1350 | F97: обувь
A98: 31.07 | D98: 570
A99: 02.08 | C99: 895 | D99: 410 | E99: 5000
A100: 04.08 | B100: 270
A101: 05.08 | D101: 940
A102: 06.08 | C102: 1650 | D102: 390
A103: 07.08 | C103: 640 | F103: яичная скорлупа
A104: 08.08 | D104: 290 | F104: 09.08-11.08 — 3 чел/дня
A105: 12.08 | D105: 335
A106: 13.08 | C106: 1010 | D106: 760
A107: 14.08 | C107: 1800 | F107: лузга гречихи
A108: 16.08 | B108: 17385 | D108: 250
A109: 17.08 | C109: 1520 | D109: 120
A110: 20.08 | C110: 1525 | D110: 120
A111: 23.08 | C111: 800 | D111: 250
A112: 25.08 | C112: 720 | D112: 245
A113: 26.08 | B113: 325
A114: 27.08 | C114: 695 | D114: 320
A115: 27.08 | D115: 540 | F115: ионообменная смола
A116: 29.08 | D116: 100
A117: 30.08 | B117: 140 | C117: 950
A118: 31.08 | D118: 45
A119: 01.09 | C119: 725
A120: 03.09 | C120: 630
A121: 04.09 | B121: 85 | D121: 200
A122: 06.09 | C122: 845 | D122: 135 | E122: 1000 | F122: кот переведен на смываемый тофу наполнитель
A123: 08.09 | D123: 95
A124: 09.09 | C124: 1045
A125: 10.09 | D125: 100
A126: 13.09 | B126: 175 | C126: 540
A127: 14.09 | C127: 1225
A128: 16.09 | D128: 235
A129: 17.09 | C129: 425
A130: 18.09 | D130: 45
A131: 20.09 | B131: 9795 | C131: 585
A132: 22.09 | D132: 545
A133: 23.09 | C133: 580
A134: 26.09 | D134: 520 | F134: ионообменная смола
A135: 27.09 | C135: 450
A136: 28.09 | B136: 225 | D136: 405
A137: 28.09 | D137: 1320 | F137: обувь
A138: 29.09 | C138: 1010
A139: 01.10 | D139: 145
A140: 02.10 | C140: 715 | D140: 60
A141: 05.10 | B141: 170
A142: 06.10 | C142: 360
A143: 09.10 | C143: 855 | D143: 555
A144: 10.10 | C144: 565
A145: 11.10 | D145: 110
A146: 12.10 | C146: 1120
A147: 14.10 | C147: 265 | D147: 260
A148: 16.10 | B148: 150 | C148: 390 | D148: 310
A149: 18.10 | B149: 7935 | D149: 350
A150: 20.10 | C150: 1380
A151: 22.10 | C151: 315 | D151: 235
A152: 23.10 | B152: 290
A153: 24.10 | C153: 295 | D153: 200
A154: 25.10 | C154: 530
A155: 27.10 | C155: 870
A156: 29.10 | C156: 375 | D156: 290
A157: 30.10 | C157: 395
A158: 01.11 | C158: 510
A159: 02.11 | D159: 145
A160: 04.11 | C160: 605
A161: 07.11 | D161: 165
A162: 08.11 | C162: 1185
A163: 10.11 | C163: 810 | D163: 340
A164: 13.10 | C164: 665
A165: 14.11 | B165: 195 | C165: 945 | D165: 410
A166: 15.11 | B166: 10020 | C166: 105 | D166: 110
A167: 16.11 | C167: 170
A168: 17.11 | C168: 265 | D168: 110
A169: 18.11 | C169: 245
A170: 20.11 | C170: 285 | D170: 230
A171: 21.11 | C171: 775
A172: 23.11 | C172: 295
A173: 25.11 | C173: 200
A174: 26.11 | C174: 350
A175: 27.11 | B175: 160 | C175: 360 | D175: 700
A176: 30.11 | C176: 265
A177: 02.12 | D177: 345
A178: 03.12 | D178: 805 | F178: обувь
A179: 04.12 | C179: 860 | D179: 140
A180: 06.12 | C180: 330 | D180: 140
A181: 07.12 | D181: 155
A182: 09.12 | C182: 340
A183: 10.12 | B183: 265 | C183: 1140
A184: 13.12 | C184: 770 | D184: 315
A185: 15.12 | C185: 830
A186: 17.12 | C186: 980 | D186: 415
A187: 19.12 | B187: 255 | C187: 880
A188: 20.12 | B188: 13140 | D188: 335
A189: 21.12 | C189: 1150
A190: 22.12 | C190: 520
A191: 24.12 | C191: 855 | D191: 180
A192: 26.12 | C192: 370 | D192: 330
A193: 28.12 | C193: 535 | D193: 255
A194: 29.12 | C194: 1270 | D194: 80 | F194: яичная скорлупа
A195: 31.12 | C195: 1620 | D195: 1000

Sheet 2025 сортируемый
A1: Дата | B1: 1 (ПЭТ), г | C1: Стекло, г | D1: Металл, г | E1: 2+4 тверд, г | F1: 4 пленка, г | G1: 5 пленка, г | H1: Композит, г | I1: 5 тв (пр+бел), г | J1: 5 тв (цветн), г | K1: 6, г | L1: 6 вспен, г | M1: Картон гофр, г | N1: Картон тонк, г | O1: Бумага, г | P1: Тетрапак, г | Q1: Прочее, г
A2: 03.01 | B2: 270 | R2: =SUM($B$2:$Q$200) -> 116245 | S2: Итого
A3: 04.01 | B3: 170 | R3: =SUM($B$2:$B$200)/SUM($B$2:$Q$200)*100 -> 10.65852295 | S3: % ПЭТ
A4: 05.01 | B4: 150 | R4: =SUM($C$2:$C$200)/SUM($B$2:$Q$200)*100 -> 12.70162158 | S4: % Стекло
A5: 11.01 | B5: 170 | R5: =SUM($D$2:$D$200)/SUM($B$2:$Q$200)*100 -> 5.312056433 | S5: % Металл
A6: 15.01 | B6: 110 | R6: =SUM($E$2:$E$200)/SUM($B$2:$Q$200)*100 -> 1.793625532 | S6: % 2+4 тверд
A7: 18.01 | B7: 160 | C7: 700 | D7: 520 | E7: 270 | F7: 255 | G7: 350 | H7: 230 | I7: 260 | J7: 230 | K7: 65 | L7: 20 | M7: 3150 | N7: 870 | O7: 445 | P7: 80 | Q7: 100 | R7: =SUM($F$2:$F$200)/SUM($B$2:$Q$200)*100 -> 4.339971612 | S7: % 4 пленка
A8: 26.01 | B8: 185 | R8: =SUM($G$2:$G$200)/SUM($B$2:$Q$200)*100 -> 3.703385092 | S8: % 5 пленка
A9: 09.02 | B9: 270 | R9: =SUM($H$2:$H$200)/SUM($B$2:$Q$200)*100 -> 1.711901587 | S9: % композит
A10: 15.02 | B10: 170 | C10: 0 | D10: 430 | E10: 95 | F10: 570 | G10: 410 | H10: 195 | I10: 190 | J10: 365 | K10: 110 | L10: 10 | M10: 535 | N10: 570 | O10: 90 | P10: 200 | Q10: 80 | R10: =SUM($I$2:$I$200)/SUM($B$2:$Q$200)*100 -> 3.303367887 | S10: % 5 тв (пр+бел)
A11: 15.03 | B11: 250 | C11: 1750 | D11: 160 | E11: 185 | F11: 445 | G11: 450 | H11: 170 | I11: 380 | J11: 285 | K11: 250 | L11: 0 | M11: 565 | N11: 1085 | O11: 935 | P11: 200 | Q11: 300 | R11: =SUM($J$2:$J$200)/SUM($B$2:$Q$200)*100 -> 2.843133038 | S11: % 5 тв (цветн)
A12: 18.03 | B12: 520 | R12: =SUM($K$2:$K$200)/SUM($B$2:$Q$200)*100 -> 1.157039012 | S12: % 6
A13: 27.03 | B13: 200 | R13: =SUM($L$2:$L$200)/SUM($B$2:$Q$200)*100 -> 0.8602520539 | S13: % 6 вспен
A14: 03.04 | B14: 90 | R14: =SUM($M$2:$M$200)/SUM($B$2:$Q$200)*100 -> 26.00111833 | S14: % картон гофр
A15: 19.04 | B15: 800 | C15: 900 | D15: 540 | E15: 100 | F15: 485 | G15: 450 | H15: 240 | I15: 600 | J15: 460 | K15: 190 | L15: 680 | M15: 1970 | N15: 1130 | O15: 385 | P15: 0 | Q15: 190 | R15: =SUM($N$2:$N$200)/SUM($B$2:$Q$200)*100 -> 8.533700374 | S15: % картон тонк
A16: 07.05 | B16: 735 | R16: =SUM($O$2:$O$200)/SUM($B$2:$Q$200)*100 -> 6.038969418 | S16: % бумага
A17: 17.05 | B17: 390 | C17: 150 | D17: 375 | E17: 95 | F17: 150 | G17: 335 | H17: 195 | I17: 660 | J17: 340 | K17: 135 | L17: 5 | M17: 1610 | N17: 1050 | O17: 1130 | P17: 240 | Q17: 250 | R17: =SUM($P$2:$P$200)/SUM($B$2:$Q$200)*100 -> 1.458127231 | S17: % тетрапак
A18: 23.05 | B18: 570 | R18: =SUM($Q$2:$Q$200)/SUM($B$2:$Q$200)*100 -> 9.58320788 | S18: % прочее
A19: 01.06 | B19: 570 | R19: =SUM(R3:R18) -> 100 | U19: Всего | V19: Органика | W19: Наполнитель | X19: Не сортируемый
A20: 26.06 | B20: 460 | U20: 295605 | V20: 102275 | W20: 38500 | X20: 38585
A21: 11.07 | B21: 460 | R21: =SUM($M$2:$O$200)/SUM($B$2:$Q$200)*100 -> 40.57378812 | S21: % Макулатура | U21: =SUM($M$2:$O$200)/U20*100 -> 15.95541347
A22: 19.07 | B22: 460 | C22: 3220 | D22: 1665 | E22: 245 | F22: 940 | G22: 560 | H22: 270 | I22: 630 | J22: 365 | K22: 130 | L22: 5 | M22: 2660 | N22: 1425 | O22: 1420 | P22: 300 | Q22: 460 | R22: =(SUM($B$2:$B$200)+SUM($E$2:$L$200))/SUM($B$2:$Q$200)*100 -> 30.37119876 | S22: % Пластик | U22: =(SUM($B$2:$B$200)+SUM($E$2:$L$200))/U20*100 -> 11.94330272
A23: 23.07 | B23: 215 | R23: =SUM($C$2:$C$200)/SUM($B$2:$Q$200)*100 -> 12.70162158 | S23: % Стекло | U23: =SUM($C$2:$C$200)/U20*100 -> 4.994841089
A24: 04.08 | B24: 270 | R24: =SUM($D$2:$D$200)/SUM($B$2:$Q$200)*100 -> 5.312056433 | S24: % Металл | U24: =SUM($D$2:$D$200)/U20*100 -> 2.088936249
A25: 16.08 | B25: 105 | C25: 1000 | D25: 405 | E25: 190 | F25: 375 | G25: 170 | H25: 80 | I25: 110 | J25: 110 | K25: 35 | L25: 165 | M25: 3955 | N25: 785 | O25: 1450 | P25: 120 | Q25: 8330 | R25: =SUM($P$2:$Q$200)/SUM($B$2:$Q$200)*100 -> 11.04133511 | S25: % Тетрапак+Прочее | U25: =SUM($P$2:$Q$200)/U20*100 -> 4.341942795
A26: 26.08 | B26: 725 | R26: =SUM(R21:R25) -> 100 | U26: =V20/U20*100 -> 34.59853521 | V26: % органики
A27: 20.09 | B27: 425 | C27: 1800 | D27: 725 | E27: 200 | F27: 510 | G27: 370 | H27: 180 | I27: 430 | J27: 310 | K27: 105 | L27: 105 | M27: 3095 | N27: 925 | O27: 285 | P27: 165 | Q27: 165 | U27: =W20/U20*100 -> 13.02413694 | V27: % наполнителя
A28: 05.10 | B28: 545 | U28: =X20/U20*100 -> 13.05289153 | V28: % не сортируемого
A29: 18.10 | B29: 250 | C29: 2895 | D29: 550 | E29: 330 | F29: 385 | G29: 285 | H29: 90 | I29: 250 | J29: 205 | K29: 170 | L29: 10 | M29: 1065 | N29: 670 | O29: 300 | P29: 190 | Q29: 290 | U29: =SUM(U21:U28) -> 100
A30: 23.10 | B30: 485
A31: 15.11 | B31: 300 | C31: 590 | D31: 130 | E31: 30 | F31: 375 | G31: 480 | H31: 140 | I31: 100 | J31: 250 | K31: 80 | L31: 0 | M31: 5750 | N31: 900 | O31: 395 | P31: 150 | Q31: 350
A32: 27.11 | B32: 680
A33: 20.12 | B33: 1230 | C33: 1760 | D33: 675 | E33: 345 | F33: 555 | G33: 445 | H33: 200 | I33: 230 | J33: 385 | K33: 75 | L33: 0 | M33: 5870 | N33: 510 | O33: 185 | P33: 50 | Q33: 625

Sheet 2026
A1: Дата | B1: Сортируемый, г | C1: Органика, г | D1: Не сортируемый, г | E1: Комментарий | F1: 2 взрослых 2 детей
A2: 02.01 | C2: 685 | F2: Масса сортируемого (кг) | G2: =SUM(B$2:B$246)/1000 -> 45.115 | I2: 365 дней | K2: 8,43 р/м2 | M2: 30 м квадратных общей площади жилья на человека в среднем по России
A3: 03.01 | C3: 440 | F3: Масса органики (кг) | G3: =SUM(C$2:C$246)/1000 -> 40.465 | M3: 22,5 м квадратных на человека в среднем в Москве
A4: 04.01 | D4: 360 | E4: 04.01-10.01 — 14 чел/дней | F4: Масса не сортируемого (кг) | G4: =SUM(D$2:D$246)/1000 -> 17.3
A5: 06.01 | C5: 500 | F5: Доля сортируемого (%) | G5: =100*G2/SUM(G$2:G$4) -> 43.85206065
A6: 07.01 | B6: 420 | F6: Доля органики (%) | G6: =100*G3/SUM(G$2:G$4) -> 39.33223173
A7: 10.01 | C7: 330 | D7: 165 | F7: Доля не сортируемого (%) | G7: =100*G4/SUM(G$2:G$4) -> 16.81570762
A8: 11.01 | C8: 660 | F8: Масса общая (кг) | G8: =SUM(G$2:G$4) -> 102.88
A9: 13.01 | C9: 300
A10: 14.01 | C10: 980 | D10: 170
A11: 16.01 | C11: 355 | F11: Только числа, без формул
A12: 17.01 | D12: 170 | F12: Масса общая (кг)
A13: 18.01 | D13: 110 | F13: Масса сортируемого (кг)
A14: 21.01 | C14: 765 | F14: Масса органики (кг)
A15: 23.01 | C15: 520 | D15: 180 | F15: Масса не сортируемого (кг)
A16: 24.01 | B16: 7275 | C16: 835 | F16: Доля сортируемого (%)
A17: 25.01 | C17: 720 | F17: Доля органики (%)
A18: 26.01 | D18: 310 | F18: Доля не сортируемого (%)
A19: 28.01 | B19: 510 | C19: 1800
A20: 29.01 | C20: 405 | D20: 370
A21: 31.01 | C21: 360
A22: 02.02 | D22: 240
A23: 03.02 | C23: 1520
A24: 04.02 | D24: 1175 | E24: обувь
A25: 06.02 | C25: 830 | D25: 95
A26: 08.02 | C26: 535 | D26: 145 | E26: 10.02-15.02 — 6 чел/дней
A27: 13.02 | C27: 2040 | D27: 315
A28: 16.02 | B28: 260 | D28: 145
A29: 17.02 | C29: 740
A30: 18.02 | C30: 550
A31: 20.02 | D31: 1090
A32: 21.02 | B32: 5095 | C32: 785
A33: 22.02 | D33: 400
A34: 24.02 | C34: 450
A35: 25.02 | C35: 220
A36: 27.02 | D36: 410
A37: 28.02 | C37: 555
A38: 01.03 | D38: 125
A39: 03.03 | C39: 250 | D39: 80
A40: 04.03 | B40: 400
A41: 06.03 | C41: 1060 | D41: 490
A42: 08.03 | C42: 1475
A43: 09.03 | B43: 125 | D43: 520
A44: 10.03 | C44: 485 | D44: 670
A45: 12.03 | C45: 400
A46: 15.03 | C46: 1270 | D46: 275
A47: 16.03 | C47: 805
A48: 18.03 | C48: 365 | D48: 245
A49: 21.03 | B49: 11370 | C49: 400 | D49: 205
A50: 22.03 | B50: 310
A51: 23.03 | D51: 1515 | E51: обувь
A52: 25.03 | C52: 660 | D52: 445
A53: 28.03 | B53: 160 | C53: 650 | D53: 365
A54: 31.03 | B54: 50 | C54: 755
A55: 02.04 | B55: 235 | C55: 1210 | D55: 465
A56: 04.04 | C56: 260 | D56: 240
A57: 07.04 | C57: 645 | D57: 290
A58: 08.04 | C58: 305 | D58: 105
A59: 09.04 | D59: 240
A60: 10.04 | D60: 420
A61: 11.04 | B61: 400 | C61: 400 | D61: 505 | E61: обувь
A62: 13.04 | B62: 325 | C62: 320 | D62: 105
A63: 16.04 | C63: 550 | D63: 135
A64: 18.04 | B64: 10605 | C64: 790 | D64: 100
A65: 19.04 | D65: 340
A66: 21.04 | C66: 505
A67: 22.04 | D67: 160
A68: 24.04 | C68: 680
A69: 25.04 | B69: 265
A70: 26.04 | D70: 185
A71: 29.04 | C71: 1450
A72: 01.05 | D72: 115 | E72: 02.05-04.05 — 3 чел/дня
A73: 06.05 | B73: 320 | C73: 385 | D73: 365 | E73: 04.05-11.05 — 16 чел/дней
A74: 12.05 | C74: 575 | D74: 155 | E74: Органика — был запах
A75: 13.05 | B75: 165 | C75: 780
A76: 15.05 | B76: 160
A77: 16.05 | B77: 5705 | C77: 1420 | D77: 445
A78: 19.05 | B78: 340 | C78: 580 | D78: 285
A79: 21.05 | D79: 650 | E79: обувь
A80: 22.05 | C80: 620 | D80: 345
A81: 24.05 | D81: 290
A82: 27.05 | C82: 655 | D82: 235
A83: 28.05 | C83: 350
A84: 30.05 | D84: 135
A85: 01.06 | C85: 680
A86: 02.06 | D86: 205
A87: 03.06 | B87: 620 | C87: 570
A88: 04.06 | C88: 280

Sheet 2026 сортируемый
A1: Дата | B1: 1 (ПЭТ), г | C1: Стекло, г | D1: Железо, г | E1: Алюминий (металл и фольга), г | F1: 2+4 тверд, г | G1: 4 пленка, г | H1: 5 пленка, г | I1: Композит, г | J1: 5 тв (пр+бел), г | K1: 5 тв (цветн), г | L1: 6, г | M1: 6 вспен, г | N1: Картон гофр, г | O1: Картон тонк, г | P1: Пульперкартон, г | Q1: Бумага, г | R1: Тетрапак, г | S1: Электрохлам, г | T1: Прочее (7 пленка и тд), г
A2: 07.01 | B2: 420 | U2: =SUM($B$2:$T$200) -> 45115 | V2: Итого
A3: 24.01 | B3: 410 | C3: 1020 | D3: 385 | E3: 25 | F3: 90 | G3: 290 | H3: 465 | I3: 130 | J3: 495 | K3: 380 | L3: 50 | M3: 0 | N3: 1290 | O3: 915 | P3: 70 | Q3: 715 | R3: 160 | S3: 0 | T3: 385 | U3: =SUM($B$2:$B$200)/SUM($B$2:$T$200)*100 -> 14.20813477 | V3: % ПЭТ | W3: =SUM($B$3:$T$3) -> 7275
A4: 28.01 | B4: 770 | U4: =SUM($C$2:$C$200)/SUM($B$2:$T$200)*100 -> 14.10838967 | V4: % Стекло
A5: 21.02 | B5: 300 | C5: 765 | D5: 130 | E5: 20 | F5: 285 | G5: 250 | H5: 300 | I5: 90 | J5: 250 | K5: 260 | L5: 85 | M5: 0 | N5: 1220 | O5: 470 | P5: 205 | Q5: 155 | R5: 70 | S5: 60 | T5: 180 | U5: =SUM($D$2:$D$200)/SUM($B$2:$T$200)*100 -> 3.358084894 | V5: % Железо | W5: =SUM($B$5:$T$5) -> 5095
A6: 04.03 | B6: 400 | U6: =SUM($E$2:$E$200)/SUM($B$2:$T$200)*100 -> 0.3214008645 | V6: % Алюминий
A7: 09.03 | B7: 125 | U7: =SUM($F$2:$F$200)/SUM($B$2:$T$200)*100 -> 2.504710185 | V7: % 2+4 тверд
A8: 21.03 | B8: 570 | C8: 2675 | D8: 300 | E8: 20 | F8: 190 | G8: 560 | H8: 510 | I8: 160 | J8: 245 | K8: 280 | L8: 70 | M8: 0 | N8: 1775 | O8: 1025 | P8: 160 | Q8: 2260 | R8: 260 | S8: 0 | T8: 310 | U8: =SUM($G$2:$G$200)/SUM($B$2:$T$200)*100 -> 4.410949795 | V8: % 4 пленка | W8: =SUM($B$8:$T$8) -> 11370
A9: 22.03 | B9: 545 | U9: =SUM($H$2:$H$200)/SUM($B$2:$T$200)*100 -> 4.610439987 | V9: % 5 пленка
A10: 28.03 | F10: 160 | H10: 50 | U10: =SUM($I$2:$I$200)/SUM($B$2:$T$200)*100 -> 1.329934612 | V10: % композит
A11: 13.04 | B11: 325 | S11: 400 | U11: =SUM($J$2:$J$200)/SUM($B$2:$T$200)*100 -> 4.821012967 | V11: % 5 тв (пр+бел)
A12: 18.04 | B12: 370 | C12: 1095 | D12: 450 | E12: 30 | F12: 70 | G12: 505 | H12: 445 | I12: 100 | J12: 565 | K12: 260 | L12: 90 | M12: 10 | N12: 5245 | O12: 860 | P12: 30 | Q12: 215 | R12: 90 | S12: 0 | T12: 175 | U12: =SUM($K$2:$K$200)/SUM($B$2:$T$200)*100 -> 3.369167683 | V12: % 5 тв (цветн) | W12: =SUM($B$12:$T$12) -> 10605
A13: 15.05 | B13: 745 | F13: 165 | U13: =SUM($L$2:$L$200)/SUM($B$2:$T$200)*100 -> 0.7092984595 | V13: % 6
A14: 16.05 | B14: 550 | C14: 810 | D14: 250 | E14: 50 | F14: 170 | G14: 385 | H14: 310 | I14: 120 | J14: 620 | K14: 340 | L14: 25 | M14: 0 | N14: 845 | O14: 545 | P14: 180 | Q14: 85 | R14: 20 | S14: 0 | T14: 400 | U14: =SUM($M$2:$M$200)/SUM($B$2:$T$200)*100 -> 0.02216557686 | V14: % 6 вспен | W14: =SUM($B$14:$T$14) -> 5705
A15: 19.05 | B15: 260 | R15: 80 | U15: =SUM($N$2:$N$200)/SUM($B$2:$T$200)*100 -> 22.99678599 | V15: % картон гофр
A16: 04.06 | B16: 620 | U16: =SUM($O$2:$O$200)/SUM($B$2:$T$200)*100 -> 8.456167572 | V16: % картон тонк
U17: =SUM($P$2:$P$200)/SUM($B$2:$T$200)*100 -> 1.429679707 | V17: % пульперкартон
U18: =SUM($Q$2:$Q$200)/SUM($B$2:$T$200)*100 -> 7.602792863 | V18: % бумага
U19: =SUM($R$2:$R$200)/SUM($B$2:$T$200)*100 -> 1.507259226 | V19: % тетрапак
U20: =SUM($S$2:$S$200)/SUM($B$2:$T$200)*100 -> 1.019616536 | V20: % электрохлам
U21: =SUM($T$2:$T$200)/SUM($B$2:$T$200)*100 -> 3.214008645 | V21: % прочее
U22: =SUM(U3:U21) -> 100 | X22: Всего | Y22: Органика | Z22: Не сортируемый
X23: 96040 | Y23: 36730 | Z23: 15155
U24: =SUM($N$2:$Q$200)/SUM($B$2:$T$200)*100 -> 40.48542613 | V24: % Макулатура | X24: =SUM($N$2:$Q$200)/X23*100 -> 19.01811745
U25: =(SUM($B$2:$B$200)+SUM($F$2:$M$200))/SUM($B$2:$T$200)*100 -> 35.98581403 | V25: % Пластик | X25: =(SUM($B$2:$B$200)+SUM($F$2:$M$200))/X23*100 -> 16.90441483
U26: =SUM($C$2:$C$200)/SUM($B$2:$T$200)*100 -> 14.10838967 | V26: % Стекло | X26: =SUM($C$2:$C$200)/X23*100 -> 6.627446897
U27: =SUM($D$2:$E$200)/SUM($B$2:$T$200)*100 -> 3.679485759 | V27: % Металл | X27: =SUM($D$2:$E$200)/X23*100 -> 1.728446481
U28: =SUM($R$2:$T$200)/SUM($B$2:$T$200)*100 -> 5.740884407 | V28: % Тетрапак+Прочее | X28: =SUM($R$2:$T$200)/X23*100 -> 2.696793003
U29: =SUM(U24:U28) -> 100 | X29: =Y23/X23*100 -> 38.24448147 | Y29: % органики
X30: =Z23/X23*100 -> 15.77988338 | Y30: % не сортируемого
X31: =SUM(X24:X30) -> 100.9995835
